bitfinex-derivatives/quotes_BTCF0:USTF0_20240913
["timestamp","ask_amount","ask_price","bid_price","bid_amount"]
[1726207450938,0.086306,57930.0,57929.0,1.53138135]
[1726207451135,0.087306,57930.0,57929.0,1.53138135]
[1726207451445,0.087306,57930.0,57929.0,1.58281067]
[1726207451446,0.088306,57930.0,57929.0,1.58281067]
[1726207452243,0.04513112,57930.0,57929.0,1.53138135]
[1726207454339,0.04513112,57930.0,57929.0,0.39138135]
[1726207457935,0.04513112,57930.0,57929.0,0.47768935]
[1726207463052,0.07529112,57930.0,57929.0,0.47768935]
[1726207463742,0.07529112,57930.0,57929.0,0.11688935]
[1726207463944,0.07529112,57930.0,57929.0,0.47768935]
[1726207464341,0.01484602,57930.0,57929.0,0.47768935]
[1726207464742,0.086306,57930.0,57929.0,0.47768935]
[1726207464939,0.142356,57930.0,57929.0,0.47768935]
[1726207468241,0.142356,57930.0,57929.0,0.67941797]
[1726207469243,0.142356,57930.0,57929.0,0.59332249]
[1726207469749,0.142356,57930.0,57929.0,0.23252249]
[1726207470834,0.142356,57930.0,57929.0,0.11688935]
[1726207471038,0.142356,57930.0,57929.0,0.2326382]
[1726207471249,0.142356,57930.0,57929.0,0.11688935]
[1726207472135,0.142356,57930.0,57929.0,0.33608638]
[1726207472749,0.142356,57930.0,57929.0,0.22024995]
[1726207473147,0.05605,57930.0,57929.0,0.22024995]
[1726207474556,0.05605,57930.0,57929.0,0.11688935]
[1726207482145,0.05605,57930.0,57929.0,0.20319735]
[1726207483453,0.05605,57930.0,57929.0,0.45751624]
[1726207483758,0.01483,57933.0,57932.0,0.086303]
[1726207484050,0.124,57936.0,57935.0,0.086299]
[1726207484257,0.12,57936.0,57935.0,0.086299]
[1726207485550,0.14082,57936.0,57935.0,0.086299]
[1726207486754,0.14682,57936.0,57935.0,0.086299]
[1726207488455,0.14682,57936.0,57935.0,0.20209371]
[1726207488650,0.14682,57936.0,57935.0,0.34011657]
[1726207488845,0.14682,57936.0,57935.0,0.36570936]
[1726207492965,0.233117,57936.0,57935.0,0.36570936]
[1726207494253,0.233117,57936.0,57935.0,0.25381757]
[1726207494456,0.086303,57932.0,57931.0,0.086303]
[1726207494665,0.206303,57932.0,57931.0,0.11185075]
[1726207495762,0.208303,57932.0,57931.0,0.11185075]
[1726207495967,0.210303,57932.0,57931.0,0.11185075]
[1726207503275,0.296606,57932.0,57931.0,0.02554775]
[1726207503466,0.296606,57932.0,57928.0,0.086309]
[1726207503467,0.210303,57932.0,57929.0,0.08621275]
[1726207504981,0.208303,57932.0,57929.0,0.08621275]
[1726207505167,0.086306,57930.0,57929.0,0.08621275]
[1726207505478,0.086306,57930.0,57929.0,0.20224099]
[1726207506272,0.086306,57930.0,57929.0,0.22784666]
[1726207506472,0.086306,57930.0,57929.0,0.14163391]
[1726207506875,0.086306,57930.0,57929.0,0.22787141]
[1726207508493,0.086306,57930.0,57929.0,0.14163391]
[1726207508895,0.086306,57930.0,57929.0,0.22787271]
[1726207509502,0.086306,57930.0,57929.0,0.02560567]
[1726207509695,0.086309,57928.0,57927.0,0.49977246]
[1726207509895,0.206309,57928.0,57927.0,0.49885246]
[1726207510494,0.4808,57928.0,57925.0,0.06898994]
[1726207510695,0.4808,57928.0,57920.0,0.3648]
[1726207510696,0.4808,57928.0,57922.0,0.086318]
[1726207510895,0.12,57923.0,57922.0,0.086318]
[1726207511398,0.01482,57923.0,57922.0,0.086318]
[1726207511604,0.221137,57923.0,57922.0,0.086318]
[1726207512799,0.222137,57923.0,57922.0,0.086318]
[1726207513207,0.223137,57923.0,57922.0,0.086318]
[1726207514409,0.01682,57923.0,57922.0,0.086318]
[1726207516505,0.08631,57928.0,57927.0,0.086311]
[1726207516706,0.08631,57928.0,57927.0,0.56298489]
[1726207517902,0.08631,57928.0,57927.0,0.20218489]
[1726207518098,0.08631,57928.0,57927.0,0.56298489]
[1726207518308,0.08631,57928.0,57927.0,0.20318489]
[1726207521912,0.08631,57928.0,57927.0,0.22819767]
[1726207523113,0.08631,57928.0,57927.0,0.22820537]
[1726207524522,0.08631,57928.0,57927.0,0.11232378]
[1726207529219,0.086303,57932.0,57927.0,0.02601278]
[1726207529524,0.086303,57932.0,57931.0,0.13802048]
[1726207529819,0.086303,57932.0,57931.0,0.086305]
[1726207531122,0.088303,57932.0,57931.0,0.086305]
[1726207531321,0.002,57932.0,57931.0,0.493005]
[1726207532719,0.004,57932.0,57931.0,0.493005]
[1726207537530,0.004,57932.0,57931.0,0.132205]
[1726207537827,0.004,57932.0,57931.0,0.21851]
[1726207538530,0.004,57932.0,57931.0,1.35851]
[1726207539037,0.004,57932.0,57931.0,0.21851]
[1726207539419,0.004,57932.0,57931.0,0.33403463]
[1726207540526,0.004,57932.0,57931.0,0.28813463]
[1726207541228,0.124,57932.0,57931.0,0.28813463]
[1726207542322,0.124,57932.0,57931.0,0.17251862]
[1726207542523,0.124,57932.0,57931.0,0.28811344]
[1726207543532,0.124,57932.0,57931.0,0.20189982]
[1726207546427,0.124,57932.0,57931.0,0.086305]
[1726207547523,0.210303,57932.0,57931.0,0.086305]
[1726207547731,0.124,57932.0,57931.0,0.086305]
[1726207552135,0.086308,57929.0,57928.0,0.086309]
[1726207552329,0.086309,57928.0,57927.0,0.02501278]
[1726207552522,0.086311,57927.0,57926.0,0.05168984]
[1726207552830,0.086312,57926.0,57925.0,0.05168984]
[1726207553025,0.086314,57925.0,57924.0,0.13800384]
[1726207553425,0.086314,57925.0,57924.0,0.086314]
[1726207553426,0.085314,57925.0,57924.0,0.086314]
[1726207554642,0.086314,57925.0,57924.0,0.20217749]
[1726207555335,0.086314,57925.0,57924.0,0.11586349]
[1726207555638,0.087314,57925.0,57923.0,0.08621969]
[1726207555840,0.087314,57925.0,57921.0,0.08621969]
[1726207556042,0.086321,57920.0,57919.0,0.38479459]
[1726207556233,0.086321,57920.0,57919.0,0.50095719]
[1726207556939,0.086321,57920.0,57919.0,0.50095543]
[1726207557136,0.086321,57920.0,57919.0,0.58727843]
[1726207557729,0.087321,57920.0,57919.0,0.58727843]
[1726207558239,0.088321,57920.0,57919.0,0.58727843]
[1726207558839,0.088321,57920.0,57919.0,0.58714793]
[1726207558840,0.208321,57920.0,57919.0,0.58714793]
[1726207559339,0.208321,57920.0,57919.0,0.47098709]
[1726207559537,0.208321,57920.0,57919.0,0.38479459]
[1726207560233,0.208321,57920.0,57919.0,0.47111759]
[1726207560941,0.208321,57920.0,57919.0,0.11031759]
[1726207563537,0.208321,57920.0,57919.0,0.17922994]
[1726207563735,0.088321,57920.0,57919.0,0.11031759]
[1726207564132,0.002,57920.0,57919.0,0.23031759]
[1726207566047,0.002,57920.0,57919.0,0.29921576]
[1726207566432,0.002,57920.0,57919.0,0.17921576]
[1726207569647,0.002,57920.0,57919.0,0.22632854]
[1726207570239,0.002,57920.0,57919.0,0.22632846]
[1726207571744,0.002,57920.0,57919.0,0.34632846]
[1726207573341,0.002,57920.0,57919.0,0.22632846]
[1726207574342,0.088321,57920.0,57919.0,0.22632846]
[1726207575037,0.088321,57920.0,57919.0,0.22636742]
[1726207577654,0.088321,57920.0,57919.0,0.32976495]
[1726207579457,0.088321,57920.0,57919.0,0.22636742]
[1726207580352,0.088321,57920.0,57919.0,0.36484586]
[1726207584654,0.088321,57920.0,57919.0,0.22636742]
[1726207584855,0.088321,57920.0,57919.0,0.22660244]
[1726207591550,0.088321,57920.0,57919.0,0.36525026]
[1726207591749,0.12,57921.0,57919.0,0.36525026]
[1726207591953,0.12,57921.0,57920.0,0.34125367]
[1726207592258,0.20632,57921.0,57920.0,0.34125367]
[1726207593250,0.20732,57921.0,57920.0,0.36495146]
[1726207593660,0.08732,57921.0,57920.0,0.36495146]
[1726207594652,0.08832,57921.0,57920.0,0.3639644]
[1726207595553,0.08832,57921.0,57920.0,0.22587191]
[1726207601566,0.08832,57921.0,57920.0,0.11001879]
[1726207603070,0.08832,57921.0,57920.0,0.22584926]
[1726207603669,0.002,57921.0,57920.0,0.22584926]
[1726207603869,0.002,57921.0,57920.0,0.11001879]
[1726207605570,0.004,57925.0,57920.0,0.31633979]
[1726207605765,0.004,57928.0,57924.0,0.567115]
[1726207606073,0.004,57931.0,57927.0,0.12]
[1726207606370,0.004,57935.0,57934.0,0.0863]
[1726207606564,0.086296,57937.0,57934.0,0.0863]
[1726207607667,0.12,57935.0,57934.0,0.0863]
[1726207607963,0.206299,57935.0,57934.0,0.0863]
[1726207609569,0.211299,57935.0,57934.0,0.0863]
[1726207609960,0.216299,57935.0,57934.0,0.0863]
[1726207612457,0.216299,57935.0,57934.0,0.10991691]
[1726207615277,0.01,57935.0,57934.0,0.10991691]
[1726207618469,0.216299,57935.0,57934.0,0.10991691]
[1726207618869,0.13,57935.0,57934.0,0.10991691]
[1726207621473,0.216299,57935.0,57934.0,0.10991691]
[1726207621673,0.086303,57932.0,57931.0,0.13798095]
[1726207621977,0.206303,57932.0,57931.0,0.11017056]
[1726207622365,0.086309,57928.0,57927.0,0.447109]
[1726207622573,0.206309,57928.0,57927.0,0.447109]
[1726207624282,0.206309,57928.0,57927.0,0.448109]
[1726207624469,0.206309,57928.0,57927.0,0.087309]
[1726207624666,0.206309,57928.0,57927.0,0.11067515]
[1726207627273,0.206309,57928.0,57927.0,0.02436615]
[1726207627469,0.653418,57928.0,57927.0,0.001]
[1726207629075,0.653418,57928.0,57927.0,0.06994914]
[1726207629381,0.567109,57928.0,57927.0,0.06994914]
[1726207631368,0.567109,57928.0,57927.0,0.001]
[1726207632173,0.567109,57928.0,57927.0,0.06994914]
[1726207632490,0.567109,57928.0,57927.0,0.001]
[1726207633883,0.653418,57928.0,57927.0,0.001]
[1726207642590,0.292618,57928.0,57927.0,0.001]
[1726207642795,0.653418,57928.0,57927.0,0.001]
[1726207644288,0.567109,57928.0,57927.0,0.001]
[1726207646278,0.567109,57928.0,57927.0,0.06994914]
[1726207646483,0.447109,57928.0,57927.0,0.06994914]
[1726207646788,0.567109,57928.0,57927.0,0.06994914]
[1726207649292,0.567109,57928.0,57927.0,0.001]
[1726207650788,0.653418,57928.0,57927.0,0.001]
[1726207653591,0.69273292,57928.0,57927.0,0.001]
[1726207654996,0.70654292,57928.0,57927.0,0.001]
[1726207658300,0.70656632,57928.0,57927.0,0.001]
[1726207658695,0.667228,57928.0,57927.0,0.001]
[1726207659295,0.681038,57928.0,57927.0,0.001]
[1726207660492,0.320238,57928.0,57927.0,0.001]
[1726207660687,0.681038,57928.0,57927.0,0.001]
[1726207663199,0.320238,57928.0,57927.0,0.001]
[1726207663398,0.688158,57928.0,57927.0,0.001]
[1726207664399,0.568158,57928.0,57927.0,0.001]
[1726207664605,0.688158,57928.0,57927.0,0.001]
[1726207665094,0.701968,57928.0,57927.0,0.001]
[1726207674201,0.74120149,57928.0,57927.0,0.001]
[1726207678612,0.701968,57928.0,57927.0,0.001]
[1726207682618,0.788277,57928.0,57927.0,0.001]
[1726207687328,0.788277,57928.0,57927.0,0.05280899]
[1726207687518,0.788277,57928.0,57927.0,0.001]
[1726207688128,0.82739912,57928.0,57927.0,0.001]
[1726207688626,0.788277,57928.0,57927.0,0.001]
[1726207696232,0.82729288,57928.0,57927.0,0.001]
[1726207700950,0.94801622,57928.0,57927.0,0.001]
[1726207703647,0.788277,57928.0,57927.0,0.001]
[1726207710152,0.701968,57928.0,57927.0,0.001]
[1726207710951,1.062768,57928.0,57927.0,0.001]
[1726207711348,2.266957,57928.0,57927.0,0.001]
[1726207711543,2.30586876,57928.0,57927.0,0.001]
[1726207712141,1.70586876,57928.0,57927.0,0.001]
[1726207712549,1.18798876,57928.0,57927.0,0.001]
[1726207713757,1.70586876,57928.0,57927.0,0.001]
[1726207714662,1.82671511,57928.0,57927.0,0.001]
[1726207715049,2.42671511,57928.0,57927.0,0.001]
[1726207715467,2.42668825,57928.0,57927.0,0.001]
[1726207716856,1.90880825,57928.0,57927.0,0.001]
[1726207717559,1.90879857,57928.0,57927.0,0.001]
[1726207717861,1.833142,57928.0,57927.0,0.001]
[1726207718067,1.233142,57928.0,57927.0,0.001]
[1726207718367,1.28613058,57928.0,57927.0,0.001]
[1726207718559,1.44150445,57928.0,57927.0,0.001]
[1726207719262,0.086321,57921.0,57920.0,0.05180907]
[1726207719457,0.567121,57921.0,57920.0,0.05180907]
[1726207719663,0.653442,57921.0,57920.0,0.05180907]
[1726207720066,0.172642,57920.0,57919.0,0.09910907]
[1726207720867,0.172642,57920.0,57919.0,0.0473]
[1726207721165,0.206382,57920.0,57919.0,0.0473]
[1726207721360,0.220192,57920.0,57919.0,0.0473]
[1726207722461,0.221192,57920.0,57919.0,0.0473]
[1726207722956,0.222192,57920.0,57919.0,0.0473]
[1726207725065,0.2456538,57920.0,57919.0,0.0473]
[1726207725473,0.086326,57917.0,57916.0,0.05180907]
[1726207725771,0.172652,57917.0,57916.0,0.05180907]
[1726207726767,0.173652,57917.0,57916.0,0.05180907]
[1726207726967,0.175652,57917.0,57916.0,0.05180907]
[1726207727167,0.086335,57911.0,57910.0,0.08618643]
[1726207727367,0.206335,57911.0,57910.0,0.08618643]
[1726207728470,0.086338,57909.0,57908.0,0.1393]
[1726207729879,0.208338,57909.0,57908.0,0.1393]
[1726207732166,0.207338,57909.0,57908.0,0.19105239]
[1726207732570,0.206338,57909.0,57908.0,0.19105239]
[1726207734379,0.206338,57909.0,57908.0,0.1393]
[1726207736971,0.233958,57909.0,57908.0,0.1393]
[1726207738273,0.594758,57909.0,57908.0,0.1393]
[1726207739079,0.601868,57909.0,57908.0,0.1393]
[1726207740386,0.688206,57909.0,57908.0,0.1393]
[1726207740678,0.688206,57909.0,57908.0,0.16327915]
[1726207741573,0.601868,57909.0,57908.0,0.16327915]
[1726207742478,0.601868,57909.0,57908.0,0.0943]
[1726207746584,0.688206,57909.0,57908.0,0.0475]
[1726207746773,0.688206,57909.0,57905.0,0.05173647]
[1726207746774,0.51553,57909.0,57905.0,0.05173647]
[1726207746974,0.51553,57909.0,57904.0,0.05173647]
[1726207746975,0.086344,57905.0,57904.0,0.05173647]
[1726207747285,0.086344,57905.0,57903.0,0.05173647]
[1726207747286,0.17269,57904.0,57903.0,0.05173647]
[1726207747585,0.17269,57904.0,57896.0,0.08625399]
[1726207747586,0.086351,57900.0,57899.0,0.05173647]
[1726207747788,0.086352,57899.0,57898.0,0.05173647]
[1726207747988,0.086354,57898.0,57897.0,0.05173647]
[1726207748287,0.206354,57898.0,57896.0,0.05173647]
[1726207749186,0.206354,57898.0,57895.0,0.05173647]
[1726207749378,0.12,57896.0,57895.0,0.05173647]
[1726207749579,0.12,57896.0,57895.0,0.20288894]
[1726207750280,0.12,57896.0,57895.0,0.08625399]
[1726207750481,0.121,57896.0,57894.0,0.08625399]
[1726207750783,0.122,57896.0,57895.0,0.08625399]
[1726207751171,0.122,57896.0,57894.0,0.08625399]
[1726207751483,0.208357,57896.0,57894.0,0.08625399]
[1726207751686,0.207357,57896.0,57894.0,0.08625399]
[1726207751874,0.01381,57895.0,57894.0,0.08625399]
[1726207752075,0.01381,57895.0,57894.0,0.20253886]
[1726207753185,0.01481,57895.0,57894.0,0.20253886]
[1726207753369,0.01581,57895.0,57894.0,0.20253886]
[1726207753978,0.102168,57895.0,57894.0,0.20253886]
[1726207754390,0.102168,57895.0,57894.0,0.20252877]
[1726207754688,0.109278,57895.0,57894.0,0.20252877]
[1726207756283,0.109278,57895.0,57894.0,0.28888877]
[1726207757582,0.0626054,57895.0,57894.0,0.30613957]
[1726207759180,0.0715154,57895.0,57894.0,0.08636]
[1726207759388,0.0715154,57895.0,57894.0,0.20220842]
[1726207759595,0.0853254,57895.0,57894.0,0.20220842]
[1726207762494,0.0853254,57895.0,57894.0,0.11584842]
[1726207762714,0.1716834,57895.0,57894.0,0.11584842]
[1726207762885,0.1716834,57895.0,57894.0,0.20203185]
[1726207763086,0.08636,57894.0,57893.0,0.08618343]
[1726207763283,0.086361,57893.0,57892.0,0.44698343]
[1726207763480,0.086361,57893.0,57892.0,0.47686136]
[1726207764178,0.086361,57893.0,57892.0,0.56304335]
[1726207764379,0.086361,57893.0,57892.0,0.56322436]
[1726207764692,0.086361,57893.0,57892.0,0.51610699]
[1726207765995,0.087361,57893.0,57892.0,0.51610699]
[1726207766291,0.088361,57893.0,57892.0,0.51710699]
[1726207766493,0.088361,57893.0,57892.0,0.448163]
[1726207771789,0.088361,57893.0,57892.0,0.495463]
[1726207772596,0.088361,57893.0,57892.0,0.61169433]
[1726207773299,0.208361,57893.0,57892.0,0.61169433]
[1726207773991,0.208361,57893.0,57892.0,0.25089433]
[1726207777804,0.088361,57893.0,57892.0,0.25089433]
[1726207779399,0.102171,57893.0,57892.0,0.25089433]
[1726207779698,0.102171,57893.0,57892.0,0.134663]
[1726207780300,0.01581,57893.0,57892.0,1.57541629]
[1726207780499,0.01581,57893.0,57892.0,1.67892108]
[1726207780694,0.01581,57893.0,57892.0,1.59255808]
[1726207781595,0.01581,57893.0,57892.0,1.48905329]
[1726207782206,0.02962,57893.0,57892.0,1.48905329]
[1726207782406,0.03673,57893.0,57892.0,1.48905329]
[1726207786797,0.03673,57893.0,57892.0,1.57541629]
[1726207787007,0.03673,57893.0,57892.0,1.48905329]
[1726207787715,0.00891,57895.0,57894.0,0.08636]
[1726207788007,0.00891,57895.0,57894.0,0.20255029]
[1726207788613,0.00891,57895.0,57894.0,0.20218423]
[1726207788813,0.00991,57895.0,57894.0,0.20218423]
[1726207789511,0.03153,57895.0,57894.0,0.20318423]
[1726207790006,0.03153,57895.0,57894.0,0.08736]
[1726207791913,0.03153,57895.0,57894.0,0.20320752]
[1726207793209,0.237888,57895.0,57894.0,0.20320752]
[1726207793410,0.237888,57895.0,57894.0,0.17367578]
[1726207794614,0.237888,57895.0,57894.0,0.08736]
[1726207798017,0.117888,57895.0,57894.0,0.08736]
[1726207799812,0.117888,57895.0,57894.0,0.13915783]
[1726207800228,0.03153,57895.0,57894.0,0.08736]
[1726207800717,0.03153,57895.0,57894.0,0.15641411]
[1726207801218,0.03153,57895.0,57894.0,0.08736]
[1726207802122,0.03153,57895.0,57894.0,0.13916083]
[1726207802326,0.03153,57895.0,57894.0,0.08736]
[1726207804217,0.03153,57895.0,57894.0,0.17367578]
[1726207804418,0.03153,57895.0,57894.0,0.08736]
[1726207805921,0.03153,57895.0,57894.0,0.28961388]
[1726207809138,0.03153,57895.0,57894.0,0.3232981]
[1726207809524,0.004,57898.0,57897.0,0.17271]
[1726207809728,0.004,57902.0,57897.0,0.42587139]
[1726207809926,0.004,57902.0,57900.0,0.4808]
[1726207810130,0.090344,57905.0,57904.0,0.086345]
[1726207810432,0.086344,57905.0,57904.0,0.086345]
[1726207811223,0.086344,57905.0,57904.0,0.1553803]
[1726207811224,0.089584,57905.0,57904.0,0.1553803]
[1726207812241,0.089584,57905.0,57904.0,0.086345]
[1726207812442,0.090584,57905.0,57904.0,0.086345]
[1726207812935,0.091584,57905.0,57904.0,0.086345]
[1726207815537,0.00524,57905.0,57904.0,0.1553803]
[1726207816731,0.091584,57905.0,57904.0,0.1553803]
[1726207817135,0.091584,57905.0,57904.0,0.086345]
[1726207822941,0.086345,57904.0,57903.0,0.02329193]
[1726207823131,0.086348,57902.0,57901.0,0.086348]
[1726207823443,0.206348,57902.0,57901.0,0.086348]
[1726207824243,0.206348,57902.0,57895.0,0.2146]
[1726207824244,0.086354,57899.0,57898.0,0.086354]
[1726207824448,0.567154,57899.0,57898.0,0.086354]
[1726207824843,0.206354,57899.0,57898.0,0.086354]
[1726207825542,0.204354,57899.0,57898.0,0.086354]
[1726207825747,0.204354,57899.0,57898.0,0.10934967]
[1726207825941,0.205354,57899.0,57898.0,0.10934967]
[1726207826138,0.206354,57899.0,57898.0,0.11134967]
[1726207827649,0.086354,57899.0,57898.0,0.11134967]
[1726207828847,0.089584,57899.0,57898.0,0.11134967]
[1726207829040,0.00523,57899.0,57898.0,0.23134967]
[1726207829354,0.00523,57899.0,57898.0,0.59214967]
[1726207834047,0.00523,57899.0,57898.0,0.64389754]
[1726207834947,0.00523,57899.0,57898.0,0.59214967]
[1726207835256,0.00523,57899.0,57898.0,0.64389754]
[1726207836658,0.00523,57899.0,57898.0,0.52389754]
[1726207836956,0.00523,57899.0,57898.0,0.64389754]
[1726207837951,0.00523,57899.0,57898.0,0.59214967]
[1726207839152,0.00523,57899.0,57898.0,0.47214967]
[1726207839360,0.00523,57899.0,57898.0,0.59214967]
[1726207839961,0.00523,57899.0,57898.0,0.70774137]
[1726207840762,0.00523,57899.0,57898.0,0.34694137]
[1726207840946,0.00523,57899.0,57898.0,0.31766975]
[1726207841250,0.00523,57899.0,57898.0,0.43332249]
[1726207841650,0.00523,57899.0,57898.0,0.43333798]
[1726207842155,0.00523,57899.0,57898.0,0.31766975]
[1726207842342,0.00523,57899.0,57898.0,0.23134967]
[1726207842543,0.091582,57899.0,57898.0,0.11134967]
[1726207844757,0.091582,57899.0,57898.0,0.23134967]
[1726207845251,0.091582,57899.0,57898.0,0.31766975]
[1726207845458,0.091582,57899.0,57898.0,0.23134967]
[1726207845659,0.091582,57899.0,57898.0,0.31766975]
[1726207845850,0.091582,57899.0,57898.0,0.23134967]
[1726207846160,0.091582,57899.0,57898.0,0.43331189]
[1726207846347,0.091582,57899.0,57898.0,0.02499567]
[1726207857765,0.177934,57899.0,57898.0,0.02499567]
[1726207858564,0.177934,57899.0,57898.0,0.002]
[1726207860971,0.177934,57899.0,57898.0,0.07106712]
[1726207861862,0.177934,57899.0,57898.0,0.002]
[1726207870279,0.538734,57899.0,57898.0,0.002]
[1726207870898,0.452382,57899.0,57895.0,0.06906712]
[1726207871175,0.086354,57898.0,57897.0,0.05179491]
[1726207872282,0.086354,57898.0,57893.0,0.06906712]
[1726207872283,0.086355,57897.0,57896.0,0.05179491]
[1726207872479,0.206355,57897.0,57896.0,0.05179491]
[1726207872673,0.209565,57897.0,57896.0,0.05179491]
[1726207872979,0.172714,57896.0,57895.0,0.05179491]
[1726207873179,0.292714,57896.0,57895.0,0.05179491]
[1726207874066,0.294714,57896.0,57895.0,0.05179491]
[1726207874375,0.172716,57895.0,57894.0,0.05179491]
[1726207874575,0.292716,57895.0,57894.0,0.05179491]
[1726207875977,0.447158,57895.0,57894.0,0.05179491]
[1726207876177,0.567158,57895.0,57894.0,0.05179491]
[1726207876482,0.086361,57893.0,57892.0,0.05179491]
[1726207876789,0.086363,57892.0,57890.0,0.05179491]
[1726207877083,0.206364,57891.0,57889.0,0.05179491]
[1726207877283,0.206364,57891.0,57886.0,0.06906712]
[1726207877284,0.086367,57889.0,57888.0,0.05179491]
[1726207877486,0.206367,57889.0,57888.0,0.05179491]
[1726207877985,0.08637,57887.0,57886.0,0.06906712]
[1726207878188,0.086372,57886.0,57885.0,0.06906712]
[1726207878377,0.206372,57886.0,57885.0,0.06906712]
[1726207879084,0.086373,57885.0,57884.0,0.09211544]
[1726207879292,0.086373,57885.0,57884.0,0.06906712]
[1726207880178,0.086375,57884.0,57883.0,0.06906712]
[1726207881288,0.086376,57883.0,57882.0,0.13872756]
[1726207882888,0.087376,57883.0,57882.0,0.13872756]
[1726207883278,0.088376,57883.0,57882.0,0.13872756]
[1726207883481,0.002,57883.0,57882.0,0.22510556]
[1726207883682,0.088376,57883.0,57882.0,0.15603844]
[1726207884280,0.208376,57883.0,57880.0,0.05171474]
[1726207884580,0.086381,57880.0,57877.0,0.12]
[1726207884889,0.086381,57880.0,57879.0,0.0517187]
[1726207885081,0.086381,57880.0,57878.0,0.086382]
[1726207886390,0.086382,57879.0,57878.0,0.086382]
[1726207886780,0.3608,57881.0,57880.0,0.086381]
[1726207886978,0.447179,57881.0,57880.0,0.206381]
[1726207888778,0.449179,57881.0,57880.0,0.206381]
[1726207889984,0.449179,57881.0,57880.0,0.301581]
[1726207889985,0.091379,57881.0,57880.0,0.301581]
[1726207891592,0.005,57881.0,57880.0,0.301581]
[1726207893300,0.005,57881.0,57880.0,0.37053362]
[1726207894702,0.005,57881.0,57880.0,0.25053362]
[1726207894896,0.005,57881.0,57880.0,0.301581]
[1726207895599,0.0082,57881.0,57880.0,0.37052403]
[1726207897390,0.0082,57881.0,57880.0,0.301581]
[1726207900001,0.0082,57881.0,57880.0,0.50403428]
[1726207900212,0.0082,57881.0,57880.0,0.50395325]
[1726207900403,0.0082,57881.0,57880.0,1.5577142]
[1726207905294,0.0082,57881.0,57880.0,1.66129249]
[1726207907097,0.0082,57881.0,57880.0,1.441581]
[1726207907301,0.004,57883.0,57882.0,0.086378]
[1726207907496,0.004,57887.0,57882.0,0.086378]
[1726207907701,0.172735,57890.0,57889.0,0.086367]
[1726207907901,0.172735,57890.0,57889.0,0.082367]
[1726207908203,0.3608,57892.0,57885.0,0.086373]
[1726207908204,0.086372,57886.0,57885.0,0.086373]
[1726207909116,0.086372,57886.0,57885.0,0.1100299]
[1726207909704,0.094372,57886.0,57885.0,0.1100299]
[1726207909912,0.102372,57886.0,57885.0,0.1100299]
[1726207910814,0.102372,57886.0,57885.0,0.0236569]
[1726207911005,0.086375,57884.0,57883.0,0.086375]
[1726207912202,0.091375,57884.0,57883.0,0.086375]
[1726207912705,0.097375,57884.0,57883.0,0.086375]
[1726207915008,0.097375,57884.0,57883.0,0.28900436]
[1726207915407,0.097375,57884.0,57883.0,0.28901551]
[1726207916514,0.217375,57884.0,57883.0,0.28901551]
[1726207916814,0.217375,57884.0,57883.0,0.20264051]
[1726207917118,0.30375,57884.0,57883.0,0.20264051]
[1726207917609,0.217375,57884.0,57883.0,0.20264051]
[1726207918317,0.217375,57884.0,57883.0,0.11630302]
[1726207918613,0.217375,57884.0,57883.0,0.20268372]
[1726207919705,0.217375,57884.0,57883.0,0.20275482]
[1726207919916,0.30375,57884.0,57883.0,0.20275482]
[1726207920516,0.30375,57884.0,57879.0,0.4888494]
[1726207920517,0.086378,57882.0,57881.0,0.0863807]
[1726207920717,0.086378,57882.0,57881.0,0.20278065]
[1726207921121,0.172756,57882.0,57881.0,0.20278065]
[1726207921320,0.172756,57882.0,57879.0,0.38439111]
[1726207921321,0.086379,57881.0,57880.0,0.0863807]
[1726207921510,0.086379,57881.0,57880.0,0.20278148]
[1726207921911,0.206379,57881.0,57880.0,0.20278148]
[1726207922117,0.086381,57880.0,57879.0,0.38439111]
[1726207923710,0.087381,57880.0,57879.0,0.38439111]
[1726207925111,0.088381,57880.0,57879.0,0.38439111]
[1726207925915,0.088381,57880.0,57879.0,0.02359111]
[1726207926116,0.086382,57879.0,57878.0,0.206383]
[1726207929717,0.086382,57879.0,57878.0,0.22983575]
[1726207934827,0.090382,57879.0,57878.0,0.22983575]
[1726207935036,0.095382,57879.0,57878.0,0.22983575]
[1726207935933,0.095382,57879.0,57878.0,0.34611689]
[1726207937836,0.095382,57879.0,57878.0,0.22983575]
[1726207939332,0.095382,57879.0,57878.0,0.10983575]
[1726207944931,0.095382,57879.0,57878.0,0.22624718]
[1726207948046,0.095382,57879.0,57878.0,0.22626515]
[1726207949136,0.095382,57879.0,57878.0,0.32988781]
[1726207950136,0.095382,57879.0,57878.0,0.24350481]
[1726207951841,0.181764,57879.0,57878.0,0.22005206]
[1726207953047,0.086384,57878.0,57877.0,0.44719849]
[1726207953743,0.086384,57878.0,57877.0,0.47134673]
[1726207954137,0.089384,57878.0,57877.0,0.47134673]
[1726207954338,0.089384,57878.0,57877.0,0.38494824]
[1726207954339,0.092384,57878.0,57877.0,0.38494824]
[1726207954646,0.298768,57878.0,57877.0,0.38494824]
[1726207955942,0.092384,57878.0,57877.0,0.38494824]
[1726207957439,0.092384,57878.0,57877.0,0.47133324]
[1726207957951,0.092384,57878.0,57877.0,0.51703324]
[1726207959049,0.006,57878.0,57877.0,0.51703324]
[1726207960040,0.004,57885.0,57882.0,0.086378]
[1726207960241,0.004,57885.0,57884.0,0.06911792]
[1726207960242,0.206373,57885.0,57884.0,0.06911792]
[1726207961348,0.224373,57885.0,57884.0,0.06911792]
[1726207961548,0.104373,57885.0,57884.0,0.17923563]
[1726207961747,0.018,57885.0,57884.0,0.58738446]
[1726207961948,0.02,57885.0,57884.0,0.73620712]
[1726207962146,0.02,57885.0,57884.0,0.63258446]
[1726207962147,0.022,57885.0,57884.0,0.63258446]
[1726207962455,0.022,57885.0,57884.0,0.73620229]
[1726207964250,0.022,57885.0,57884.0,0.63258446]
[1726207964446,0.00406731,57885.0,57884.0,1.15086446]